bitfinex/quotes_BTCUSD_20250109
["timestamp","ask_amount","ask_price","bid_price","bid_amount"]
[1736429284536,0.01110441,93015.0,93010.0,0.00781538]
[1736429284746,0.215006,93021.0,93010.0,0.00781538]
[1736429284747,0.00446342,93020.0,93011.0,0.10537479]
[1736429284953,0.00446342,93018.0,93011.0,0.10429976]
[1736429285372,0.00446342,93018.0,93012.0,0.001075]
[1736429285595,0.22612855,93021.0,93013.0,0.10429976]
[1736429285814,0.00446342,93018.0,93013.0,0.10429976]
[1736429286224,0.215014,93017.0,93013.0,0.10429976]
[1736429286437,0.215021,93014.0,93013.0,0.10429976]
[1736429286649,0.001,93015.0,93013.0,0.10429976]
[1736429286830,0.02316,93014.0,93013.0,0.10429976]
[1736429287276,0.215021,93014.0,93010.0,0.00781538]
[1736429287486,0.001,93015.0,93011.0,0.10429976]
[1736429287697,0.218021,93014.0,93011.0,0.10429976]
[1736429287904,0.00446342,93011.0,93010.0,0.00781538]
[1736429288286,0.21949142,93011.0,93010.0,0.00781538]
[1736429289529,0.21949142,93011.0,93010.0,5.538e-05]
[1736429289983,0.29449142,93011.0,93010.0,5.538e-05]
[1736429290400,0.44449142,93011.0,93010.0,5.538e-05]
[1736429290815,0.44649142,93011.0,93010.0,5.538e-05]
[1736429291022,0.44749142,93011.0,93010.0,5.538e-05]
[1736429291427,0.44649142,93011.0,93010.0,5.538e-05]
[1736429291635,0.44449142,93011.0,93010.0,5.538e-05]
[1736429291835,0.45549142,93011.0,93010.0,5.538e-05]
[1736429292393,0.45249142,93011.0,93010.0,5.538e-05]
[1736429292619,0.45349142,93011.0,93010.0,5.538e-05]
[1736429292879,0.58079118,93011.0,93010.0,5.538e-05]
[1736429293055,0.57279118,93011.0,93010.0,5.538e-05]
[1736429293444,0.57479118,93011.0,93010.0,5.538e-05]
[1736429293644,0.67709094,93011.0,93010.0,5.538e-05]
[1736429294173,0.68409094,93011.0,93010.0,5.538e-05]
[1736429294375,0.68709094,93011.0,93010.0,5.538e-05]
[1736429294908,0.67609094,93011.0,93010.0,5.538e-05]
[1736429295113,0.68009094,93011.0,93010.0,5.538e-05]
[1736429295563,0.57579118,93011.0,93010.0,5.538e-05]
[1736429295992,0.58681519,93011.0,93010.0,5.538e-05]
[1736429296371,0.59581519,93011.0,93010.0,5.538e-05]
[1736429298133,0.71521242,93002.0,93001.0,6.2e-07]
[1736429298347,0.71521242,93002.0,92989.0,0.00017]
[1736429298348,0.17746342,92990.0,92989.0,0.00017]
[1736429298657,0.33709127,92990.0,92989.0,0.00017]
[1736429298889,0.33601692,92990.0,92989.0,0.00017]
[1736429299304,0.33601692,92990.0,92975.0,0.0078051]
[1736429299305,0.36955342,92984.0,92975.0,0.0078051]
[1736429299504,0.39255342,92984.0,92983.0,0.00023595]
[1736429299707,0.49067991,92984.0,92983.0,0.00023595]
[1736429299907,0.67817967,92984.0,92983.0,0.00023595]
[1736429300125,0.36957242,92976.0,92975.0,8.51e-05]
[1736429300977,0.39257242,92976.0,92975.0,8.51e-05]
[1736429301179,0.64657218,92976.0,92975.0,8.51e-05]
[1736429301402,0.73826546,92976.0,92975.0,8.51e-05]
[1736429301603,0.64126546,92976.0,92975.0,8.51e-05]
[1736429301749,0.49987218,92976.0,92975.0,8.51e-05]
[1736429302071,0.49687218,92976.0,92975.0,8.51e-05]
[1736429302287,0.50087218,92976.0,92975.0,8.51e-05]
[1736429302491,0.60087218,92976.0,92975.0,8.51e-05]
[1736429302947,0.60887218,92976.0,92975.0,8.51e-05]
[1736429303128,0.25820181,92976.0,92975.0,8.51e-05]
[1736429303332,0.26720181,92976.0,92975.0,8.51e-05]
[1736429303537,0.35501105,92976.0,92975.0,8.51e-05]
[1736429304180,0.42453216,92976.0,92975.0,8.51e-05]
[1736429304390,0.42053216,92976.0,92975.0,8.51e-05]
[1736429304609,0.42853216,92976.0,92975.0,8.51e-05]
[1736429304795,0.43253216,92976.0,92975.0,8.51e-05]
[1736429305483,0.35401105,92976.0,92975.0,8.51e-05]
[1736429305661,0.35001105,92976.0,92975.0,8.51e-05]
[1736429305870,0.34201105,92976.0,92975.0,8.51e-05]
[1736429306075,0.35001105,92976.0,92975.0,8.51e-05]
[1736429306291,0.35001105,92976.0,92965.0,0.0001702]
[1736429306292,0.1,92973.0,92965.0,0.0001702]
[1736429306524,0.0818,92965.0,92948.0,0.00772]
[1736429306768,0.365157,92955.0,92928.0,0.00107585]
[1736429306973,0.365157,92955.0,92950.0,0.10772]
[1736429309231,0.366157,92955.0,92950.0,0.10772]
[1736429309447,0.37724239,92955.0,92950.0,0.10772]
[1736429310065,0.22724239,92955.0,92954.0,8.51e-05]
[1736429310633,0.22724239,92955.0,92954.0,0.0078051]
[1736429311644,0.001,92955.0,92954.0,0.0078051]
[1736429312270,0.216157,92955.0,92954.0,0.0078051]
[1736429312650,0.216157,92955.0,92954.0,0.0059671]
[1736429313045,0.216157,92955.0,92950.0,0.1]
[1736429313046,0.365167,92951.0,92950.0,0.078483]
[1736429313269,0.215167,92951.0,92950.0,0.078483]
[1736429315589,0.218167,92951.0,92950.0,0.078483]
[1736429316177,0.222167,92951.0,92950.0,0.078483]
[1736429316400,0.217167,92951.0,92950.0,0.078483]
[1736429316596,0.222167,92951.0,92950.0,0.086203]
[1736429317032,0.1,92972.0,92950.0,0.086203]
[1736429317033,0.215157,92956.0,92950.0,0.0948233]
[1736429317237,0.0775,92992.0,92951.0,0.2335755]
[1736429317437,0.215102,92980.0,92952.0,0.10429976]
[1736429317645,0.00015043,92973.0,92965.0,0.215133]
[1736429317910,0.00015043,92973.0,92966.0,0.10537525]
[1736429318142,0.00015043,92973.0,92966.0,0.09537525]
[1736429318544,0.00015043,92973.0,92967.0,0.21513]
[1736429318876,0.00015043,92973.0,92968.0,0.10429976]
[1736429319291,0.00015043,92973.0,92969.0,0.0833]
[1736429319515,0.00015043,92973.0,92970.0,0.10429976]
[1736429319720,0.00015043,92973.0,92971.0,0.00772]
[1736429321112,0.21526843,92973.0,92971.0,0.00772]
[1736429321311,0.21526843,92973.0,92972.0,0.10429976]
[1736429321312,0.00015043,92973.0,92972.0,0.10429976]
[1736429321550,0.00015043,92973.0,92972.0,0.15267515]
[1736429322313,0.00015043,92973.0,92972.0,0.16039515]
[1736429323043,0.00115043,92973.0,92972.0,0.16139515]
[1736429324656,0.00115043,92973.0,92972.0,0.16439515]
[1736429325056,0.00115043,92973.0,92972.0,0.15667515]
[1736429325262,0.00115043,92973.0,92972.0,0.16439515]
[1736429326908,0.00115043,92973.0,92972.0,0.15667515]
[1736429327119,0.00115043,92973.0,92972.0,0.16435515]
[1736429327533,0.00115043,92973.0,92972.0,0.15667515]
[1736429327717,0.00115043,92973.0,92972.0,0.16435515]
[1736429328003,0.00115043,92973.0,92972.0,0.15667515]
[1736429328204,0.00115043,92973.0,92972.0,0.11597976]
[1736429328443,0.00115043,92973.0,92972.0,0.004]
[1736429328651,0.21526643,92973.0,92972.0,0.01068]
[1736429329080,0.21626643,92973.0,92972.0,0.01168]
[1736429329508,0.21526643,92973.0,92972.0,0.01068]
[1736429329725,0.21526643,92973.0,92972.0,0.01168]
[1736429330112,0.21526643,92973.0,92972.0,0.01068]
[1736429330351,0.36626643,92973.0,92972.0,0.01068]
[1736429330564,0.21515,92958.0,92950.0,0.078483]
[1736429330816,0.15,92967.0,92951.0,0.11197976]
[1736429331241,0.215148,92959.0,92951.0,0.11197976]
[1736429331449,0.215157,92956.0,92952.0,0.00768]
[1736429331673,0.215157,92956.0,92953.0,0.10429976]
[1736429331896,0.430314,92956.0,92950.0,0.078483]
[1736429332114,0.215167,92951.0,92950.0,0.080483]
[1736429332972,0.365167,92951.0,92950.0,0.080483]
[1736429333388,0.365167,92951.0,92950.0,0.078483]
[1736429334438,0.373167,92951.0,92950.0,0.078483]
[1736429334669,0.375167,92951.0,92950.0,0.078483]
[1736429334881,0.4772303,92951.0,92950.0,0.078483]
[1736429336008,0.48829937,92951.0,92950.0,0.078483]
[1736429336247,0.38623607,92951.0,92950.0,0.078483]
[1736429339547,0.365194,92939.0,92938.0,8.52e-05]
[1736429341111,0.36534435,92939.0,92938.0,8.52e-05]
[1736429341312,0.36734435,92939.0,92938.0,8.52e-05]
[1736429342497,0.37818895,92939.0,92938.0,8.52e-05]
[1736429342700,0.45904465,92939.0,92938.0,8.52e-05]
[1736429342903,0.56334441,92939.0,92938.0,8.52e-05]
[1736429343185,0.68634441,92939.0,92938.0,8.52e-05]
[1736429343386,0.38822,92928.0,92916.0,8.52e-05]
[1736429343608,0.49251976,92928.0,92916.0,8.52e-05]
[1736429343813,0.59681952,92928.0,92916.0,8.52e-05]
[1736429344885,0.49251976,92928.0,92916.0,8.52e-05]
[1736429345684,0.49451976,92928.0,92916.0,8.52e-05]
[1736429346115,0.50555464,92928.0,92916.0,8.52e-05]
[1736429346749,0.51155464,92928.0,92916.0,8.52e-05]
[1736429347201,0.38425488,92928.0,92916.0,8.52e-05]
[1736429349280,0.38425488,92928.0,92920.0,0.0804]
[1736429349599,0.38425488,92928.0,92916.0,8.52e-05]
[1736429349600,0.38425488,92928.0,92927.0,0.0077651]
[1736429350394,0.01303488,92928.0,92927.0,0.0077651]
[1736429350595,0.002,92928.0,92927.0,0.0077651]
[1736429350837,0.006,92928.0,92927.0,0.0077651]
[1736429351450,0.004,92928.0,92927.0,0.0077651]
[1736429351772,0.005,92928.0,92927.0,0.0077651]
[1736429352425,0.004,92928.0,92927.0,0.21726437]
[1736429352629,0.215175,92948.0,92927.0,0.40250686]
[1736429352837,0.215175,92948.0,92929.0,0.215218]
[1736429353010,0.01089536,92939.0,92930.0,0.10537569]
[1736429353213,0.00015035,92939.0,92930.0,0.10537569]
[1736429354164,0.00015035,92939.0,92931.0,0.27786108]
[1736429354365,0.00315035,92939.0,92936.0,0.2152]
[1736429354601,0.00315035,92939.0,92937.0,0.10537563]
[1736429354784,0.00315035,92939.0,92938.0,0.215197]
[1736429354934,0.00315035,92939.0,92938.0,0.10429976]
[1736429355787,0.00015035,92939.0,92938.0,0.10429976]
[1736429355994,0.00215035,92939.0,92938.0,0.10429976]
[1736429356443,0.00015035,92939.0,92938.0,0.10429976]
[1736429356621,0.00215035,92939.0,92938.0,0.10529976]
[1736429356850,0.00215035,92939.0,92938.0,0.00872]
[1736429357058,0.00015035,92939.0,92938.0,0.00872]
[1736429357236,0.00215035,92939.0,92938.0,0.00872]
[1736429357604,0.04447674,92939.0,92938.0,0.001]
[1736429358712,0.36522,92928.0,92927.0,8.51e-05]
[1736429360389,0.37022,92928.0,92927.0,0.0020851]
[1736429362054,0.38102015,92928.0,92927.0,8.51e-05]
[1736429362871,0.38302015,92928.0,92927.0,8.51e-05]
[1736429363884,0.01780015,92928.0,92927.0,8.51e-05]
[1736429364125,0.0188745,92928.0,92927.0,8.51e-05]
[1736429364775,0.2340945,92928.0,92927.0,8.51e-05]
[1736429365000,0.23302015,92928.0,92927.0,8.51e-05]
[1736429367652,0.23231215,92928.0,92927.0,8.51e-05]
[1736429367867,0.006292,92928.0,92927.0,0.10438486]
[1736429368280,0.006292,92928.0,92927.0,0.15180645]
[1736429368521,0.006292,92928.0,92927.0,0.11206486]
[1736429369160,0.002,92928.0,92927.0,0.11206486]
[1736429369369,0.01093282,92933.0,92927.0,0.11206486]
[1736429369574,0.001,92928.0,92927.0,0.11206486]
[1736429369794,0.00015035,92939.0,92927.0,0.15268215]
[1736429370002,0.001,92928.0,92927.0,0.04838239]
[1736429370180,0.001,92928.0,92927.0,0.10438486]
[1736429370414,0.00015035,92939.0,92927.0,0.11206486]
[1736429370618,0.00015035,92939.0,92928.0,0.10429976]
[1736429371023,0.00015035,92939.0,92929.0,0.215218]
[1736429371158,0.00015035,92939.0,92930.0,0.10429976]
[1736429371680,0.00015035,92939.0,92931.0,0.21628893]
[1736429371845,0.00015035,92939.0,92933.0,0.215208]
[1736429372048,0.00015035,92939.0,92934.0,0.10537566]
[1736429372449,0.00315035,92939.0,92934.0,0.10429976]
[1736429372903,0.00115035,92939.0,92934.0,0.10429976]
[1736429373247,0.00015035,92939.0,92934.0,0.10429976]
[1736429373879,0.00215035,92939.0,92934.0,0.10537566]
[1736429374493,0.00215035,92939.0,92934.0,0.32058066]
[1736429374695,0.00215035,92939.0,92934.0,0.10429976]
[1736429374902,0.00215035,92939.0,92934.0,0.10537566]
[1736429375107,0.00215035,92939.0,92934.0,0.53578466]
[1736429375332,0.00015035,92939.0,92938.0,0.215197]
[1736429375503,0.00015035,92939.0,92938.0,0.31949676]
[1736429375704,0.00015035,92939.0,92938.0,0.39699676]
[1736429376049,0.00215035,92939.0,92938.0,0.39699676]
[1736429376249,0.00015035,92939.0,92938.0,0.39699676]
[1736429376654,0.00015035,92939.0,92938.0,0.39799676]
[1736429377264,0.00015035,92939.0,92938.0,0.46931654]
[1736429378459,0.00115035,92939.0,92938.0,0.46931654]
[1736429378697,0.00115035,92939.0,92938.0,0.47231654]
[1736429378849,0.00015035,92939.0,92938.0,0.47131654]
[1736429379051,0.00115035,92939.0,92938.0,0.47231654]
[1736429380018,0.00115035,92939.0,92938.0,0.18579976]
[1736429380223,0.00115035,92939.0,92938.0,0.11597976]
[1736429381439,0.00015035,92939.0,92938.0,0.11197976]
[1736429381633,0.00015035,92939.0,92938.0,0.11397976]
[1736429381838,0.00015035,92939.0,92938.0,0.11497976]
[1736429382042,0.00015035,92939.0,92938.0,0.11397976]
[1736429382265,0.00015035,92939.0,92938.0,0.11197976]
[1736429382471,0.00015035,92939.0,92938.0,0.11397976]
[1736429382666,0.00015035,92939.0,92938.0,0.11297976]
[1736429383077,0.00115035,92939.0,92938.0,0.38262352]
[1736429383409,0.00115035,92939.0,92938.0,0.32817676]
[1736429383635,0.00115035,92939.0,92938.0,0.32717676]
[1736429384927,0.00015035,92939.0,92938.0,0.32717676]
[1736429385789,0.00015035,92939.0,92938.0,0.41774129]
[1736429386000,0.00015035,92939.0,92938.0,0.65073602]
[1736429386422,0.00115035,92939.0,92938.0,0.75173602]
[1736429386842,0.00015035,92939.0,92938.0,0.75073602]
[1736429387015,0.00115035,92939.0,92938.0,0.75273602]
[1736429387191,0.00115035,92939.0,92938.0,1.05273602]
[1736429388413,0.00115035,92939.0,92938.0,1.05173602]
[1736429388615,0.00115035,92939.0,92938.0,1.05473602]
[1736429388847,0.0009823,92976.0,92957.0,0.1]
[1736429389046,0.00113318,92976.0,92973.0,0.43023]
[1736429389273,0.00015088,92976.0,92975.0,0.215111]
[1736429389599,0.00015088,92976.0,92975.0,0.31941076]
[1736429390800,0.00015088,92976.0,92975.0,0.32041076]
[1736429391522,0.00015088,92976.0,92975.0,0.39571076]
[1736429391736,0.00015088,92976.0,92975.0,0.46554156]
[1736429392033,0.00015088,92976.0,92975.0,0.46654156]
[1736429392234,0.00015088,92976.0,92975.0,0.46554156]
[1736429392438,0.00015088,92976.0,92975.0,0.46754156]
[1736429392944,0.00015088,92976.0,92975.0,0.46454156]
[1736429393159,0.00115088,92976.0,92975.0,0.47254156]
[1736429394834,0.00115088,92976.0,92975.0,0.57254156]
[1736429395040,0.00115088,92976.0,92975.0,0.59554156]
[1736429395252,0.0001704,92977.0,92976.0,0.2004]
[1736429395253,2.8e-07,92977.0,92976.0,0.2004]
[1736429395458,8e-08,92993.0,92992.0,0.2]
[1736429395650,8e-08,92993.0,92992.0,0.77084667]
[1736429395877,5.417e-05,92993.0,92992.0,0.76977176]
[1736429396500,1.7e-07,92993.0,92992.0,0.76977176]
[1736429396715,1.7e-07,92993.0,92992.0,0.78977176]
[1736429397122,1.7e-07,92993.0,92992.0,0.79777176]
[1736429397547,1.7e-07,92993.0,92992.0,0.80881331]
[1736429398732,1.7e-07,92993.0,92992.0,0.41581331]
[1736429398939,1.7e-07,92993.0,92992.0,0.41749176]
[1736429400010,0.0001706,93014.0,93002.0,0.215047]
[1736429400239,0.0001706,93014.0,93003.0,0.10429976]
[1736429400447,0.15,93012.0,93003.0,0.10429976]
[1736429400597,0.215049,93002.0,92994.0,0.00772]
[1736429400801,0.215051,93001.0,92994.0,0.11201976]
[1736429401009,0.215061,92997.0,92994.0,0.11201976]
[1736429401820,0.15,93000.0,92994.0,0.11201976]
[1736429402443,0.215056,92999.0,92994.0,0.11201976]
[1736429402825,0.215044,93004.0,92994.0,0.11201976]
[1736429403043,0.15,93003.0,92999.0,0.215055]
[1736429403253,0.0001704,93011.0,93000.0,0.10429976]
[1736429403458,0.0001704,93011.0,93004.0,0.215044]
[1736429403693,0.0001704,93011.0,93007.0,0.215036]
[1736429403953,0.0001704,93011.0,93008.0,0.10429976]
[1736429404161,7.665e-05,93011.0,93009.0,0.03193398]
[1736429404355,7.665e-05,93011.0,93010.0,0.10429976]
[1736429404698,7.665e-05,93011.0,93010.0,0.10537482]
[1736429405516,0.00207665,93011.0,93010.0,0.10537482]
[1736429405723,0.00707665,93011.0,93010.0,0.10537482]
[1736429406015,0.00707665,93011.0,93010.0,0.16327164]
[1736429406219,7.665e-05,93011.0,93010.0,0.26327164]
[1736429406405,7.665e-05,93011.0,93010.0,0.26219658]
[1736429406650,7.665e-05,93011.0,93010.0,0.26519658]
[1736429406855,0.00012691,93011.0,93010.0,0.26319658]
[1736429407080,0.00012691,93011.0,93010.0,0.26219658]
[1736429407288,0.00012691,93011.0,93010.0,0.41849658]
[1736429407705,0.00012691,93011.0,93010.0,0.41549658]
[1736429408119,0.00012691,93011.0,93010.0,0.29249658]
[1736429408327,0.00012691,93011.0,93010.0,0.40021658]
[1736429408985,0.00012691,93011.0,93010.0,0.42321658]
[1736429409195,0.00012691,93011.0,93010.0,0.42621658]
[1736429409631,0.00112691,93011.0,93010.0,0.43221658]
[1736429410012,0.00112691,93011.0,93010.0,0.33221658]
[1736429410429,0.00012691,93011.0,93010.0,0.32621658]
[1736429410583,0.00012691,93011.0,93010.0,0.42621658]
[1736429410786,0.00112691,93011.0,93010.0,0.33221658]
[1736429410987,0.00012691,93011.0,93010.0,0.29249658]
[1736429411202,0.00012691,93011.0,93010.0,0.11201976]
[1736429411401,0.00112691,93011.0,93010.0,0.12209461]
[1736429411612,0.00112691,93011.0,93010.0,0.11437461]
[1736429411814,0.00112691,93011.0,93010.0,0.12209461]
[1736429412020,0.00112691,93011.0,93010.0,0.42209461]
[1736429412219,0.00112691,93011.0,93010.0,0.62531952]
[1736429412639,0.00012691,93011.0,93010.0,0.61831952]
[1736429412982,0.00112691,93011.0,93010.0,0.62731952]
[1736429413292,0.00112691,93011.0,93010.0,0.52531952]
[1736429413508,0.00012691,93011.0,93010.0,0.51931952]
[1736429413712,0.00112691,93011.0,93010.0,0.41629976]
[1736429413935,0.00112691,93011.0,93010.0,0.63904976]
[1736429414570,0.00012691,93011.0,93010.0,0.63004976]
[1736429415126,0.15,93023.0,93010.0,0.63004976]
[1736429415127,0.214974,93035.0,93018.0,0.21501]
[1736429415332,0.214974,93035.0,93010.0,0.41501976]
[1736429415333,5.025e-05,93023.0,93020.0,0.215007]
[1736429415537,5.025e-05,93023.0,93021.0,0.10537465]
[1736429416013,5.025e-05,93023.0,93022.0,0.215002]
[1736429416217,5.025e-05,93023.0,93022.0,0.31930176]
[1736429416634,0.00105025,93023.0,93022.0,0.31930176]
[1736429417054,5.025e-05,93023.0,93022.0,0.31930176]
[1736429417266,5.025e-05,93023.0,93022.0,0.40958797]
[1736429417435,0.00105025,93023.0,93022.0,0.40958797]
[1736429417680,0.00105025,93023.0,93022.0,0.53813531]
[1736429417681,5.025e-05,93023.0,93022.0,0.53813531]
[1736429417884,5.025e-05,93023.0,93022.0,0.78813531]
[1736429418087,5.025e-05,93023.0,93022.0,0.79313531]
[1736429418476,5.025e-05,93023.0,93022.0,0.80377485]
[1736429419297,5.025e-05,93023.0,93022.0,0.79877485]
[1736429419827,0.00105025,93023.0,93022.0,0.57413531]
[1736429420028,5.025e-05,93023.0,93022.0,0.56513531]
[1736429420242,0.00105025,93023.0,93022.0,0.57413531]
[1736429420658,0.00105025,93023.0,93022.0,0.42413531]
[1736429420882,0.00105025,93023.0,93022.0,0.1275671]
[1736429421089,5.025e-05,93023.0,93022.0,0.1185671]
[1736429421291,5.025e-05,93023.0,93022.0,0.1175671]
[1736429421794,5.025e-05,93023.0,93022.0,0.1195671]
[1736429422416,0.00105025,93023.0,93022.0,0.1275671]
[1736429422855,5.025e-05,93023.0,93022.0,0.1195671]
[1736429423206,0.00505025,93023.0,93022.0,0.1195671]
[1736429423422,5.025e-05,93023.0,93022.0,0.1195671]
[1736429423731,0.00405025,93023.0,93022.0,0.1195671]
[1736429424182,5.025e-05,93023.0,93022.0,0.1175671]
[1736429424394,0.00205025,93023.0,93022.0,0.1175671]
[1736429424597,0.00205025,93023.0,93022.0,0.15190005]
[1736429425815,5.025e-05,93023.0,93022.0,0.15190005]
[1736429426239,0.00305025,93023.0,93022.0,0.15190005]
[1736429426451,5.025e-05,93023.0,93022.0,0.11864194]
[1736429426654,0.0001706,93032.0,93030.0,0.29994975]
[1736429426858,0.00067324,93032.0,93031.0,0.10429976]
[1736429427064,0.00067324,93032.0,93031.0,0.10974921]
[1736429428599,0.00167324,93032.0,93031.0,0.10974921]
[1736429429044,0.00367324,93032.0,93031.0,0.10974921]
[1736429429443,0.00167324,93032.0,93031.0,0.10974921]
[1736429429649,0.411982,93031.0,93030.0,0.29994975]
[1736429430902,0.415982,93031.0,93030.0,0.29994975]
[1736429431031,0.051,93031.0,93030.0,0.29994975]
[1736429431240,0.004,93031.0,93030.0,0.29994975]
[1736429432245,0.002,93031.0,93030.0,0.29994975]
[1736429432502,0.002,93031.0,93030.0,0.30094975]
[1736429432708,0.011,93031.0,93030.0,0.30866975]
[1736429432912,0.002,93031.0,93030.0,0.36003633]
[1736429433261,0.002,93031.0,93030.0,0.46433609]
[1736429433563,0.00067324,93032.0,93030.0,0.46433609]
[1736429433977,0.004,93031.0,93030.0,0.41196951]
[1736429434415,0.00067324,93032.0,93030.0,0.29994975]
[1736429434622,0.00067324,93032.0,93030.0,0.30766975]
[1736429434826,0.214982,93031.0,93030.0,0.30766975]
[1736429435993,0.215982,93031.0,93030.0,0.30766975]
[1736429436331,0.215982,93031.0,93030.0,0.29994975]
[1736429436332,0.68424252,93031.0,93030.0,0.29994975]
[1736429436535,0.68224252,93031.0,93030.0,0.29994975]
[1736429436733,0.68124252,93031.0,93030.0,0.29994975]
[1736429437015,0.72888176,93031.0,93030.0,0.30094975]
[1736429437239,0.72088176,93031.0,93030.0,0.29994975]
[1736429437659,0.73188176,93031.0,93030.0,0.30094975]
[1736429437818,0.72288176,93031.0,93030.0,0.29994975]
[1736429437997,0.72288176,93031.0,92988.0,0.0766]
[1736429437998,0.21509,92984.0,92968.0,0.0829]
[1736429438199,0.215037,93007.0,92981.0,0.0078]
[1736429438418,0.023,93005.0,92981.0,0.0078]
[1736429438623,0.00107435,93004.0,92968.0,0.0829]
[1736429438821,0.215093,92983.0,92981.0,0.0078]
[1736429439026,0.430186,92983.0,92982.0,0.0078]
[1736429439441,0.430186,92983.0,92980.0,0.00013545]
[1736429439646,0.430186,92983.0,92981.0,0.0078]
[1736429439845,0.430186,92983.0,92981.0,0.0088]
[1736429440244,0.430186,92983.0,92981.0,0.0078]
[1736429440698,0.437186,92983.0,92982.0,0.001]
[1736429440818,0.432186,92983.0,92981.0,0.0078]
[1736429441025,0.00107435,92982.0,92981.0,0.0078]
[1736429442098,0.215097,92981.0,92980.0,0.00013545]
[1736429442276,0.215097,92981.0,92980.0,0.00793545]
[1736429442665,0.215097,92981.0,92980.0,0.00013545]
[1736429442906,0.25952774,92981.0,92980.0,0.00793545]
[1736429443104,0.215097,92981.0,92980.0,0.00793545]
[1736429443551,0.224097,92981.0,92980.0,0.00893545]
[1736429443749,0.224097,92981.0,92980.0,0.00113545]
[1736429443959,0.224097,92981.0,92980.0,0.00893545]
[1736429444404,0.009,92981.0,92980.0,0.00893545]
[1736429444613,0.009,92981.0,92980.0,0.00113545]
[1736429444823,0.003,92981.0,92980.0,0.00793545]
[1736429445458,0.215076,92990.0,92980.0,0.00793545]
[1736429445706,0.215081,92988.0,92980.0,0.00793545]
[1736429445914,0.15,92996.0,92980.0,0.00793545]
[1736429446089,0.215078,92990.0,92980.0,0.00793545]
[1736429446283,0.006,92981.0,92980.0,0.03134704]
[1736429446641,0.15,92989.0,92980.0,0.00793545]
[1736429447014,0.002,92981.0,92980.0,0.00793545]
[1736429447217,0.002,92981.0,92980.0,0.00893545]
[1736429447628,0.15,92989.0,92980.0,0.00793545]
[1736429447950,0.002,92981.0,92980.0,0.00793545]
[1736429449373,0.215081,92988.0,92980.0,0.00793545]
[1736429449798,0.21509,92985.0,92980.0,0.00793545]
[1736429449993,0.002,92981.0,92980.0,0.00793545]
[1736429450199,0.003,92981.0,92980.0,0.00793545]
[1736429450582,0.215081,92988.0,92980.0,0.00793545]
[1736429451038,0.001,92985.0,92980.0,0.00793545]
[1736429451427,0.215081,92988.0,92980.0,0.00793545]
[1736429451828,0.431163,92988.0,92980.0,0.00793545]
[1736429452308,0.00107435,92987.0,92980.0,0.00793545]
[1736429452436,0.215086,92986.0,92980.0,0.00793545]
[1736429452666,0.001,92988.0,92980.0,0.00793545]
[1736429452868,0.002,92981.0,92980.0,0.00793545]
[1736429453065,0.215083,92987.0,92980.0,0.00793545]
[1736429453458,0.004,92987.0,92980.0,0.00793545]
[1736429453725,0.1,93001.0,92980.0,0.00793545]
[1736429453726,0.0722,93015.0,92982.0,0.0773]
[1736429453935,0.430114,92999.0,92983.0,0.32719276]
[1736429454147,0.001,92988.0,92983.0,0.11209976]
[1736429454496,0.215071,92993.0,92983.0,0.11209976]
[1736429454874,0.004,92987.0,92983.0,0.11209976]
[1736429455233,0.003,92987.0,92983.0,0.11209976]
[1736429456303,0.001,92993.0,92983.0,0.11209976]
[1736429456508,0.001,92993.0,92983.0,0.11309976]
[1736429456793,0.001,92993.0,92984.0,0.00107536]
[1736429457003,0.0009963,93007.0,92985.0,0.10429976]
[1736429457203,0.001,92987.0,92986.0,0.2161613]
[1736429457408,0.001,92987.0,92986.0,0.31938576]
[1736429457622,0.0009817,93005.0,92990.0,0.215074]
[1736429457846,0.004,92993.0,92991.0,0.10429976]
[1736429458235,0.215044,93004.0,92991.0,0.10429976]
[1736429458481,0.0009817,93005.0,92991.0,0.10537504]
[1736429458693,0.0009817,93005.0,92998.0,0.215057]
[1736429458895,0.0009817,93005.0,92999.0,0.10429976]
[1736429459102,0.01096096,93007.0,92999.0,0.10429976]
[1736429459274,0.215039,93006.0,92999.0,0.10429976]
[1736429459410,0.01096096,93007.0,92999.0,0.10429976]
[1736429459411,0.01096096,93007.0,93000.0,0.0078]
[1736429459612,0.01096096,93007.0,93001.0,0.10429976]
[1736429459812,0.215039,93006.0,93001.0,0.10429976]
[1736429460450,0.215048,93003.0,93000.0,0.0078]
[1736429460659,0.215051,93001.0,92982.0,0.0789]
[1736429460874,0.365049,93002.0,93001.0,0.001]
[1736429461442,0.215072,92992.0,92983.0,0.11209976]
[1736429462859,0.216072,92992.0,92983.0,0.11209976]
[1736429463058,0.215076,92990.0,92984.0,0.0078]
[1736429463286,0.215079,92989.0,92984.0,0.10429976]
[1736429463499,0.215082,92988.0,92985.0,0.0078]
[1736429464019,0.0120315,92992.0,92985.0,0.0078]
[1736429464289,0.2160339,93002.0,92985.0,0.0078]
[1736429464482,0.215064,92996.0,92980.0,0.00013545]
[1736429464711,0.003,92992.0,92986.0,0.0078]
[1736429464858,0.215064,92996.0,92986.0,0.0078]
[1736429465068,0.15,93001.0,92987.0,0.10429976]
[1736429465270,0.365051,93001.0,92988.0,0.215081]
[1736429465457,0.01360178,93002.0,92990.0,0.0755]
[1736429465648,0.215051,93001.0,92991.0,0.10429976]
[1736429466050,0.215062,92997.0,92991.0,0.10429976]
[1736429466255,0.003,92992.0,92991.0,0.10429976]
[1736429466659,0.215053,93000.0,92991.0,0.10429976]
[1736429467148,0.215053,93000.0,92991.0,0.10529976]
[1736429467149,0.215062,92997.0,92991.0,0.10529976]
[1736429467357,0.00107435,92996.0,92981.0,0.0793]
[1736429467528,0.00107435,92996.0,92978.0,0.00772]
[1736429467736,0.215095,92982.0,92978.0,0.00772]
[1736429467938,0.00107435,92981.0,92978.0,0.00772]
[1736429468786,0.215095,92982.0,92978.0,0.00772]
[1736429468996,0.01078596,92992.0,92981.0,0.10429976]
[1736429469197,0.215068,92994.0,92982.0,0.0793]
[1736429469405,0.215068,92994.0,92983.0,0.10429976]
[1736429469831,0.01106269,92996.0,92984.0,0.21509]
[1736429470032,0.215065,92995.0,92985.0,0.10429976]
[1736429470233,0.215061,92997.0,92985.0,0.10429976]
[1736429470438,0.21507,92993.0,92985.0,0.10429976]
[1736429470968,0.215061,92997.0,92985.0,0.10429976]
[1736429471312,0.215068,92994.0,92985.0,0.10429976]
[1736429471992,0.2585801,92994.0,92985.0,0.10429976]
[1736429472206,0.215079,92989.0,92985.0,0.10429976]
[1736429472462,0.00107435,92988.0,92980.0,0.00013545]
[1736429472707,0.215079,92989.0,92988.0,0.00266465]
[1736429474841,0.216079,92989.0,92988.0,0.00266465]
[1736429475036,0.218079,92989.0,92988.0,0.00266465]
[1736429475719,0.43398727,92989.0,92988.0,0.00266465]
[1736429476972,0.43198727,92989.0,92988.0,0.00266465]
[1736429477387,0.43798727,92989.0,92988.0,0.00266465]